Cogmind - Beta 15 @@@ ROGUE MODE // 2025.09.27 @ 00:43:47 Player: kiul Result: Destroyed by G-34 Mercenary with Small Laser Performance ------------- Evolutions (0) 0 Regions Visited (1) 200 Robots Destroyed (13) 65 Value Destroyed (333) 333 Prototype IDs (0) 0 Alien Tech Used (0) 0 Bonus (0) 0 TOTAL SCORE: 598 Bonus ------- None Cogmind --------- Core Integrity 0/250 Matter 137/300 Energy 100/100 System Corruption 0% Temperature Warm (158) Movement Treading (160) Location -10/Materials Parts ------- > --- POWER (1) -------- (None) > --- PROPULSION (2) --- Light Treads > --- UTILITY (2) ------ Medium Storage Unit Signal Interpreter > --- WEAPON (2) ------- Assault Rifle > --- INVENTORY (10) --- Small Storage Unit Peak State ------------ > --- POWER ------------ Light Ion Engine > --- PROPULSION ------- Light Treads Light Treads > --- UTILITY ---------- Small Storage Unit Signal Interpreter > --- WEAPON ----------- Light Assault Rifle Light Cannon > --- INVENTORY -------- Light Ion Engine Assault Rifle [Rating: 7] Favorites ----------- Power Light Ion Engine Engine Light Ion Engine Propulsion Light Treads Treads Light Treads Utility Small Storage Unit Storage Small Storage Unit Processor Signal Interpreter Weapon Light Assault Rifle Ballistic Gun Light Assault Rifle Ballistic Cannon Light Cannon Build | -11 -10 ------- Run | Yrd Mat Slots Evolved . | . . Power . | . . Propulsion . | . . Utility . | . . Weapon . | . . Parts Attached 12 | 6 6 Power 2 | 1 1 Engine 2 | 1 1 Core . | . . Reactor . | . . Propulsion 3 | 2 1 Treads 3 | 2 1 Leg . | . . Wheel . | . . Hover . | . . Flight . | . . Utility 3 | 1 2 Device . | . . Storage 2 | 1 1 Processor 1 | . 1 Hackware . | . . Protection . | . . Artifact . | . . Weapon 4 | 2 2 Energy Gun . | . . Energy Cannon . | . . Ballistic Gun 3 | 2 1 Ballistic Cannon 1 | . 1 Launcher . | . . Special Weapon . | . . Impact Weapon . | . . Slashing Weapon . | . . Piercing Weapon . | . . Special Melee Weapon . | . . Unidentified Prototypes . | . . Parts Lost 7 | . 7 Power 2 | . 2 Propulsion 2 | . 2 Utility . | . . Weapon 3 | . 3 Highest Loss Streak 7 | . 7 To Critical Strikes . | . . Average Backups 2 | . 3 Power . | . . Propulsion . | . . Utility . | . . Weapon 1 | . 1 Tool/Special . | . . Unused Backups . | . . Power . | . . Propulsion . | . . Utility . | . . Weapon . | . . Tool/Special . | . . Average Slot Usage (%) 90 | . 90 Engine 13 | . 13 Treads 27 | . 27 Storage 14 | . 14 Processor 6 | . 6 Ballistic Gun 15 | . 15 Ballistic Cannon 12 | . 12 Peak Build Rating 7 | 6 7 Average Rating 6 | 4 6 On Entrance 3 | . 6 Naked Turns . | . . Heaviest Build 17 | 11 17 Greatest Support 40 | 40 40 Greatest Overweight (x) . | . . Average Overweight (x) . | . . Largest Inventory Capacity 10 | 8 10 Average Capacity 8 | 6 8 Most Carried 5 | 1 5 Average Carried 2 | . 3 Final Capacity 10 | 8 10 Final Carried 1 | 1 1 Class Distribution -------------------- 100% | Mutant Dominant Class ---------------- Mutant | -10/Materials Resources | -11 -10 ----------- Run | Yrd Mat Matter Collected 384 | 219 165 Remotely . | . . Salvage Created 367 | . 367 Parts 22 | . 22 Haulers Intercepted 1 | . 1 Recyclers Shooed . | . . Parts Field Recycled . | . . Retrieved Matter . | . . Parts Self-Destructed . | . . Prevented . | . . Kills | -11 -10 ------- Run | Yrd Mat Combat Hostiles Destroyed 11 | . 11 Guns 2 | . 2 Cannons 9 | . 9 Classes Destroyed 4 | . 4 Hauler 1 | . 1 Operator 1 | . 1 Swarmer 3 | . 3 Grunt 8 | . 8 Best Kill Streak 4 | . 4 Combat Bots Only 4 | . 4 Max Kills in Single Turn 1 | . 1 Gunslinging . | . . Exploded . | . . Melee . | . . Uniques/NPCs Destroyed . | . . Combat | -11 -10 -------- Run | Yrd Mat Hostile Shots Fired 129 | . 129 Missed 31 | . 31 Hits 98 | . 98 Projectile 98 | . 98 Damage Taken 1128 | . 1128 Core 250 | . 250 Absorbed by Shields . | . . Core Remaining (%) 100 | 100 . Volleys Fired 50 | . 50 Largest 2 | . 2 Hottest 50 | . 50 Shots Fired 95 | . 95 Gun 59 | . 59 Cannon 36 | . 36 Launcher . | . . Special . | . . Kinetic 95 | . 95 Thermal . | . . Explosive . | . . Electromagnetic . | . . Robot Hit Streak 10 | . 10 Robot Miss Streak 4 | . 4 Penetration Max . | . . Secondary Targets . | . . Shots Hit Robots 56 | . 56 Core Hits 23 | . 23 Critical Kills . | . . Critical Parts Destroyed . | . . Critical Strikes 1 | . 1 Blast 1 | . 1 Melee Attacks . | . . Impact . | . . Slashing . | . . Piercing . | . . Sneak Attacks . | . . Combat Hostiles . | . . Follow-up Attacks . | . . Damage Inflicted 873 | . 873 Guns 470 | . 470 Cannons 400 | . 400 Explosions . | . . Melee . | . . Ramming 3 | . 3 Kinetic 870 | . 870 Thermal . | . . Explosive . | . . Electromagnetic . | . . Impact . | . . Slashing . | . . Piercing . | . . Highest Corruption . | . . Average Corruption . | . . Corruption Purged . | . . Corruption Blocked . | . . Overload Shots . | . . Overflow Damage . | . . Projectiles . | . . Explosions . | . . Melee . | . . Knockbacks 6 | . 6 Impact . | . . Kinetic 4 | . 4 Secondary 2 | . 2 Self-Inflicted Damage . | . . Shots . | . . Rammed 1 | . 1 Targets Rammed 1 | . 1 Kicked . | . . Crushed . | . . Highest Temperature 152 | . 152 Average Temperature 46 | . 46 Received Heat Transfer 585 | . 585 Siege Activations . | . . Martial Activations . | . . Shielding Activations . | . . Robots Disrupted . | . . Combat Hostiles . | . . Robots Corrupted . | . . Combat Hostiles . | . . Parts Fried . | . . Impact Corruptions . | . . Robots Melted . | . . Combat Hostiles . | . . Parts Melted . | . . Heat Transferred . | . . Parts Sabotaged . | . . Parts Stolen . | . . Parts Stripped . | . . Power Chain Reactions . | . . Alert | -11 -10 ------- Run | Yrd Mat Maximum Alert Level . | . . Low Security (%) 100 | 100 100 Level 1 . | . . Level 2 . | . . Level 3 . | . . Level 4 . | . . Level 5 . | . . High Security . | . . Max Security . | . . Peak Influence 116 | . 116 Initial . | . . Average 19 | . 22 Influence Increases 273 | . 273 Destroy 0b10 Robot/C 220 | . 220 Destroy 0b10 Robot/NC 10 | . 10 Destroy Leader 42 | . 42 Destroy Structure 1 | . 1 Influence Decreases 243 | . 243 Time Decay 173 | . 173 Lost Part 70 | . 70 Squads Dispatched 3 | . 3 Investigation 1 | . 1 Extermination . | . . Reinforcement 2 | . 2 Assault . | . . Garrison . | . . Intercept . | . . Searches Triggered . | . . Construction Impeded . | . . Haulers Reinforced . | . . Active Scanning Responses . | . . Cargo Convoy Interrupts . | . . Stealth | -11 -10 --------- Run | Yrd Mat Distress Signals 2 | . 2 Communications Jammed . | . . Distress Signals . | . . Times Spotted 22 | . 22 Peak Tracking Total 8 | . 8 Tactical Retreats . | . . Traps | -11 -10 ------- Run | Yrd Mat Traps Triggered 1 | . 1 Indirectly . | . . Trap Hack Attempts . | . . Triggered . | . . Disarmed . | . . Reprogrammed . | . . Reused . | . . Traps Extracted . | . . Installed . | . . Triggered . | . . Machines | -11 -10 ---------- Run | Yrd Mat Machines Disabled . | . . Max in Single Turn . | . . Machines Repaired . | . . Machines Dismantled . | . . Machines Sabotaged . | . . Overloaded Fab Kills . | . . Hacking | -11 -10 --------- Run | Yrd Mat Machines Accessed 1 | . 1 Terminals 1 | . 1 Fabricators . | . . Repair Stations . | . . Recycling Units . | . . Scanalyzers . | . . Garrison Access . | . . Total Hacks 2 | . 2 Successful 2 | . 2 Failed . | . . Catastrophic . | . . Database Lockouts . | . . Manual 1 | . 1 Terminals 2 | . 2 Fabricators . | . . Repair Stations . | . . Recycling Units . | . . Scanalyzers . | . . Garrison Access . | . . Terminal Hacks 2 | . 2 Record 2 | . 2 Fabricator Hacks . | . . Repair Station Hacks . | . . Recycling Unit Hacks . | . . Scanalyzer . | . . Garrison Access Hacks . | . . Unauthorized Hacks . | . . Terminals . | . . Fabricators . | . . Repair Stations . | . . Recycling Units . | . . Scanalyzers . | . . Garrison Access . | . . Data Cores Recovered . | . . Used . | . . Hacking Detections . | . . Full Trace Events . | . . Feedback Events . | . . Feedback Blocked . | . . Robot Schematics Acquired . | . . Robots Built . | . . Authchips . | . . Time . | . . Total Robot Build Rating . | . . Part Schematics Acquired . | . . Parts Built . | . . Authchips . | . . Time . | . . Total Part Build Rating . | . . Parts Repaired . | . . Time . | . . Parts Recycled . | . . Recycled Matter . | . . Retrieved Matter . | . . Retrieved Components . | . . Parts Scanalyzed . | . . Part Schematics Acquired . | . . Parts Damaged . | . . Bothacking | -11 -10 ------------ Run | Yrd Mat Used RIF Installer . | . . Robots Hacked . | . . Non-combat . | . . Combat . | . . Robot Hacks Applied . | . . Relay Couplers Released . | . . Fabnet Peak Effective % . | . . Robots Rewired . | . . Allies Hacked . | . . Hacks Repelled . | . . Allies | -11 -10 -------- Run | Yrd Mat Total Allies . | . . Largest Group . | . . Highest-Rated Group . | . . Highest-Rated Ally . | . . Total Orders . | . . Ally Attacks . | . . Total Damage . | . . Kills . | . . Allies Corrupted . | . . Allies Melted . | . . Intel | -11 -10 ------- Run | Yrd Mat Active Infowar (turns) . | . . Robot Analysis Total . | . . Derelict Logs Recovered . | . . Drone Launches . | . . Drone Recoveries . | . . Exploration | -11 -10 ------------- Run | Yrd Mat Turns Passed 681 | 76 605 Spaces Moved 328 | 44 284 Core 3 | 3 . Treads 325 | 41 284 Legs . | . . Wheels . | . . Hover . | . . Flight . | . . Fastest Speed 50 | 50 160 Average Speed 158 | 152 160 Slowest Speed 160 | 160 160 Overloaded Moves . | . . Propulsion Burnouts . | . . Robots Hopped . | . . Potential Cave-ins . | . . Cave-ins Triggered . | . . Exploration Rate (%) 27 | 3 51 Regions Visited 1 Branch Regions . Pre-discovered Areas . | . . Known Exits Taken . | . . Unknown Exits Taken 1 | 1 . Scrap Searched . | . . Spaces Dug . | . . Terrain Destroyed . | . . Melee . | . . Projectile . | . . AOE . | . . Terrain Rammed . | . . Walls Destroyed . | . . Machines Disabled . | . . Actions | -11 -10 --------- Run | Yrd Mat Total 395 | 50 345 Wait . | . . Move 327 | 43 284 Hop . | . . Pick Up 3 | 1 2 Fast Attach 7 | 6 1 Attach 4 | . 4 Detach . | . . Swap 3 | . 3 Drop . | . . Fire 50 | . 50 Melee . | . . Ram . | . . Kick . | . . Crush 1 | . 1 Escape Stasis . | . . Rewire . | . . Trap . | . . Miscellaneous . | . . Route ------- -11/Scrapyard -10/Materials (discovered 2 exits: *Mat / *Min) History --------- Turn | Location | Event 35 | -11/Scrapyard | Discovered new exit (range 16) 77 | -11/Scrapyard | Entered Materials 303 | -10/Materials | Build established: Mutant 420 | -10/Materials | Discovered new exit (range 15) 457 | -10/Materials | Identified exit to Materials 543 | -10/Materials | Discovered new exit (range 13) 564 | -10/Materials | Identified exit to Mines 665 | -10/Materials | Core integrity fell below 50% 674 | -10/Materials | Core integrity fell below 20% 682 | -10/Materials | Destroyed by G-34 Mercenary with Small Laser Last Messages --------------- 00655_ K-01 Serf collects debris. 00656_ Lgt. Cannon destroyed. 00656_ K-01 Serf collects debris. 00660_ K-01 Serf cleans the Hadron Collector. 00661_ Lgt. Treads destroyed. 00661_ K-01 Serf collects debris. 00662_ K-01 Serf cleans the Hadron Collector. 00664_ K-01 Serf collects debris. 00664_ Lgt. Treads destroyed. 00666_ K-01 Serf collects debris. 00668_ K-01 Serf cleans the Hadron Collector. 00669_ K-01 Serf collects debris. 00672_ K-01 Serf cleans the Hadron Collector. 00673_ K-01 Serf collects debris. 00676_ K-01 Serf cleans the Hadron Collector. 00679_ Shotgun destroyed. 00681_ K-01 Serf collects debris. 00681_ Lgt. Ion Engine destroyed. 00681_ K-01 Serf destroyed. 00681_ K-01 Serf collects debris. Map ----- +----------------------------------------------------+ | | | | | ?????????????????????????????????????????????????? | | ?????????????????????????????????????????????????? | | ?????????????????????????????????????????????????? | | ?????????????????????????????????????????????????? | | ?????????????????????????????????????????#####???? | | ????????????????????????????????????????##"""##??? | | ???????????????????????????????????????##"|||"##?? | | ???????????????????????????????????????#"" ""#?? | | ???????????????????????????????????????# #?? | | ???????????????????????????????????????# > #?? | | ???????????????????????????????????????# #?? | | ???????????????????????????????????????# #?? | | ???????????????????????????????????????## ##?? | | ????????????????????????????????????????## ##??? | | ?????????????????????????????????????????# #???? | | ?????????????????????????????????????????# #???? | | ?????????????????????????????????????????# #???? | | ????????????????????????????????????????## ##??? | | ???????????????????????????????????###### / #??" | | ???????????????????????????????????# # "" | | ???????????????????????????????????# T + | | ???????????????????????????????????# # | | ???????????????????##+############## %!# # "T | | ???????????????????# !% g@! ## ##?"" | | ???????????? !%+ ggg%= ^ [ ## #??## | | ??????????# # %%[^k% ## ##### | | ??????????? !????# """" """" """" ## | | ???????????????????# """" """"^ """" ## ##### | | ???????????????????# """"g """" """" ### ##???? | | ???????????????????# u ###+###### | | ???????????????????+ ^ # | | ?????????????????? #? """" ^"""" """" # | | ?????????????????"????"""" """" """" # | | ???????????????????????""" """" """"% # | | ???????????????????????? ! + | | ???????????????????????? # | | ????????????????????????# # | | ????????????????????????# ######### # | | ????????????????????????# ######### ########## | | ????????????????????????# # # #????? | | ????????????????????????# # + #????? | | ?????????#######????????# # # #????? | | ########## #????????# # ###### #????? | | #???????## # #????? #????? | | ######### # #?????? #????? | | / #?????? +????? | | ########## ######### # #??????? #????? | | # ############### # #??????? #????? | +----------------------------------------------------+ Best States ------------- Heat Dissipation 25 Energy Generation 10 Energy Capacity 125 Matter Stores 283 Matter Capacity 300 Sight Range 16 Terrain Scan Density 10 Evasion (%) 40 Recoil Reduction 2 Item Schematics ----------------- None Robot Schematics ------------------ None Fabricated ------------ Nothing Repaired ---------- Nothing Alien Tech Used ----------------- None Achievements -------------- None Challenges ------------ None Game ------ Seed FluxBlastDetector Manual? 0 Play Time 00:07:46 Cumulative 11.1 hours Start 2025.09.27 @ 00:37:09 End 2025.09.27 @ 00:43:47 Sessions 1 Manual Loads 0 Difficulty Rogue Special Mode None Game No. 19 Rogue 19 Adventurer 0 Explorer 0 Win Type - Total 0 Types 0/0/0/0/0/0/0/0/0/0 Lore% 4 Gallery% 15 Achievement% 12 Wizard Run 0 Options --------- Layout 0 ASCII 0 Keyboard 1 Movement Arrows Keybinds 0 Fullscreen 1 Font 24/Smallcaps Map View 76x50 Zoom Use 0% Tactical HUD 1 Map Filters NONE Filters NONE Steam 1 RUN: e58d6d5b-ced0-4e1d-955c-9a09b07fb349